[Event "FIDE U16 Olympiad_boards_1-80"]
[Site "Eindhoven, Netherlands"]
[Date "2023.08.14"]
[Round "2.28"]
[White "Patole, Noam"]
[Black "Gkoutzouki, Aikaterini Argyro"]
[Result "1-0"]
[TimeControl "2700+10"]
[WhiteElo "1916"]
[BlackElo "1548"]

1. e4 {[%clk 00:45:17]} {[%emt 00:00:02]} c5 {[%clk 00:45:14]} {[%emt
00:00:07]} 2. Nf3 {[%clk 00:45:22]} {[%emt 00:00:05]} Nc6 {[%clk 00:45:20]}
{[%emt 00:00:03]} 3. Bb5 {[%clk 00:45:25]} {[%emt 00:00:06]} g6 {[%clk
00:45:06]} {[%emt 00:00:25]} 4. O-O {[%clk 00:45:28]} {[%emt 00:00:07]} Bg7
{[%clk 00:44:44]} {[%emt 00:00:33]} 5. c3 {[%clk 00:45:20]} {[%emt 00:00:17]}
Nf6 {[%clk 00:43:53]} {[%emt 00:01:01]} 6. Re1 {[%clk 00:45:22]} {[%emt
00:00:08]} O-O {[%clk 00:43:09]} {[%emt 00:00:54]} 7. d3 {[%clk 00:42:09]}
{[%emt 00:03:23]} a6 {[%clk 00:38:22]} {[%emt 00:04:57]} 8. Ba4 {[%clk
00:41:20]} {[%emt 00:00:59]} b5 {[%clk 00:36:35]} {[%emt 00:01:57]} 9. Bc2
{[%clk 00:38:50]} {[%emt 00:02:39]} e5 {[%clk 00:33:00]} {[%emt 00:03:46]} 10.
Be3 {[%clk 00:32:46]} {[%emt 00:06:15]} d6 {[%clk 00:32:12]} {[%emt 00:00:58]}
11. h3 {[%clk 00:32:12]} {[%emt 00:00:44]} Qc7 {[%clk 00:30:38]} {[%emt
00:01:43]} 12. Qe2 {[%clk 00:29:39]} {[%emt 00:02:43]} Bb7 {[%clk 00:29:34]}
{[%emt 00:01:15]} 13. Nbd2 {[%clk 00:29:09]} {[%emt 00:00:40]} Nd7 {[%clk
00:26:10]} {[%emt 00:03:33]} 14. Nf1 {[%clk 00:28:00]} {[%emt 00:01:19]} Ne7
{[%clk 00:24:28]} {[%emt 00:01:52]} 15. Ng3 {[%clk 00:23:59]} {[%emt 00:04:11]}
d5 {[%clk 00:23:05]} {[%emt 00:01:33]} 16. Rac1 {[%clk 00:23:43]} {[%emt
00:00:26]} d4 {[%clk 00:20:19]} {[%emt 00:02:56]} 17. cxd4 {[%clk 00:23:27]}
{[%emt 00:00:27]} exd4 {[%clk 00:20:18]} {[%emt 00:00:11]} 18. Bd2 {[%clk
00:22:44]} {[%emt 00:00:53]} a5 {[%clk 00:19:33]} {[%emt 00:00:54]} 19. a3
{[%clk 00:21:53]} {[%emt 00:01:01]} a4 {[%clk 00:19:23]} {[%emt 00:00:19]} 20.
Bb1 {[%clk 00:21:55]} {[%emt 00:00:09]} Qb6 {[%clk 00:18:49]} {[%emt 00:00:45]}
21. Ba2 {[%clk 00:20:20]} {[%emt 00:01:45]} b4 {[%clk 00:17:42]} {[%emt
00:01:17]} 22. Bc4 {[%clk 00:20:21]} {[%emt 00:00:09]} Ba6 {[%clk 00:17:43]}
{[%emt 00:00:09]} 23. Bg5 {[%clk 00:20:12]} {[%emt 00:00:18]} Rfe8 {[%clk
00:16:26]} {[%emt 00:01:27]} 24. Bxe7 {[%clk 00:18:06]} {[%emt 00:02:16]} Rxe7
{[%clk 00:16:32]} {[%emt 00:00:05]} 25. Nd2 {[%clk 00:15:39]} {[%emt 00:02:36]}
Bxc4 {[%clk 00:14:36]} {[%emt 00:02:06]} 26. Nxc4 {[%clk 00:15:47]} {[%emt
00:00:02]} Qb5 {[%clk 00:14:07]} {[%emt 00:00:37]} 27. f4 {[%clk 00:15:30]}
{[%emt 00:00:29]} Rb8 {[%clk 00:12:32]} {[%emt 00:01:45]} 28. e5 {[%clk
00:11:32]} {[%emt 00:04:09]} f5 {[%clk 00:10:32]} {[%emt 00:02:09]} 29. Nd6
{[%clk 00:11:02]} {[%emt 00:00:41]} Qc6 {[%clk 00:08:51]} {[%emt 00:01:50]} 30.
Qc2 {[%clk 00:08:01]} {[%emt 00:03:12]} Qa6 {[%clk 00:07:21]} {[%emt 00:01:38]}
31. Nc4 {[%clk 00:05:53]} {[%emt 00:02:19]} b3 {[%clk 00:06:51]} {[%emt
00:00:40]} 32. Qf2 {[%clk 00:05:40]} {[%emt 00:00:24]} Nf8 {[%clk 00:05:51]}
{[%emt 00:01:09]} 33. Nd6 {[%clk 00:05:46]} {[%emt 00:00:04]} Ne6 {[%clk
00:05:49]} {[%emt 00:00:11]} 34. Rc4 {[%clk 00:05:47]} {[%emt 00:00:11]} Rf8
{[%clk 00:04:55]} {[%emt 00:01:04]} 35. Ne2 {[%clk 00:04:49]} {[%emt 00:01:08]}
Qa8 {[%clk 00:03:39]} {[%emt 00:01:26]} 36. Rec1 {[%clk 00:04:49]} {[%emt
00:00:10]} Qa7 {[%clk 00:02:30]} {[%emt 00:01:18]} 37. Qf3 {[%clk 00:04:38]}
{[%emt 00:00:22]} Qa8 {[%clk 00:02:15]} {[%emt 00:00:24]} 38. Qxa8 {[%clk
00:03:40]} {[%emt 00:01:08]} Rxa8 {[%clk 00:02:21]} {[%emt 00:00:04]} 39. Rxc5
{[%clk 00:03:47]} {[%emt 00:00:03]} Nxc5 {[%clk 00:02:25]} {[%emt 00:00:06]} 40.
Rxc5 {[%clk 00:03:56]} {[%emt 00:00:01]} Bf8 {[%clk 00:01:56]} {[%emt
00:00:39]} 41. Nxd4 {[%clk 00:03:57]} {[%emt 00:00:10]} Rd7 {[%clk 00:01:56]}
{[%emt 00:00:09]} 42. N4b5 {[%clk 00:04:04]} {[%emt 00:00:04]} Bxd6 {[%clk
00:01:39]} {[%emt 00:00:26]} 43. Nxd6 {[%clk 00:04:11]} {[%emt 00:00:04]} Kf8
{[%clk 00:01:38]} {[%emt 00:00:11]} 44. d4 {[%clk 00:04:10]} {[%emt 00:00:11]}
Ke7 {[%clk 00:01:44]} {[%emt 00:00:04]} 45. Rc6 {[%clk 00:04:02]} {[%emt
00:00:18]} Ra5 {[%clk 00:01:11]} {[%emt 00:00:43]} 46. Kf2 {[%clk 00:02:47]}
{[%emt 00:01:25]} Ra8 {[%clk 00:00:34]} {[%emt 00:00:46]} 47. Ke3 {[%clk
00:02:30]} {[%emt 00:00:28]} Ra5 {[%clk 00:00:30]} {[%emt 00:00:13]} 48. Kd3
{[%clk 00:01:51]} {[%emt 00:00:50]} Ra8 {[%clk 00:00:21]} {[%emt 00:00:19]} 49.
Nc8+ {[%clk 00:01:56]} {[%emt 00:00:04]} Kf7 {[%clk 00:00:13]} {[%emt
00:00:19]} 50. e6+ {[%clk 00:02:05]} 1-0

[Event "FIDE U16 Olympiad_boards_1-80"]
[Site "Eindhoven, Netherlands"]
[Date "2023.08.14"]
[Round "2.29"]
[White "Milikow, Elie"]
[Black "Perossa, Nicolas"]
[Result "1-0"]
[TimeControl "2700+10"]
[WhiteElo "2319"]
[BlackElo "2062"]

1. e4 {[%clk 00:45:16]} {[%emt 00:00:03]} e5 {[%clk 00:45:19]} {[%emt
00:00:01]} 2. f4 {[%clk 00:43:10]} {[%emt 00:02:17]} exf4 {[%clk 00:45:24]}
{[%emt 00:00:05]} 3. Nf3 {[%clk 00:43:17]} {[%emt 00:00:02]} Ne7 {[%clk
00:45:32]} {[%emt 00:00:02]} 4. d4 {[%clk 00:41:25]} {[%emt 00:02:03]} d5
{[%clk 00:45:40]} {[%emt 00:00:01]} 5. Bd3 {[%clk 00:40:13]} {[%emt 00:01:22]}
Nbc6 {[%clk 00:28:24]} {[%emt 00:17:26]} 6. Bxf4 {[%clk 00:34:58]} {[%emt
00:05:26]} Bg4 {[%clk 00:28:31]} {[%emt 00:00:02]} 7. c3 {[%clk 00:32:30]}
{[%emt 00:02:39]} Ng6 {[%clk 00:28:39]} {[%emt 00:00:01]} 8. Bg3 {[%clk
00:31:25]} {[%emt 00:01:15]} dxe4 {[%clk 00:28:33]} {[%emt 00:00:17]} 9. Bxe4
{[%clk 00:30:53]} {[%emt 00:00:42]} Bd6 {[%clk 00:28:34]} {[%emt 00:00:08]} 10.
O-O {[%clk 00:27:44]} {[%emt 00:03:18]} Bxg3 {[%clk 00:26:43]} {[%emt
00:02:02]} 11. hxg3 {[%clk 00:27:37]} {[%emt 00:00:18]} O-O {[%clk 00:26:48]}
{[%emt 00:00:05]} 12. Nbd2 {[%clk 00:24:39]} {[%emt 00:03:08]} Qd6 {[%clk
00:23:54]} {[%emt 00:03:04]} 13. Qe1 {[%clk 00:23:31]} {[%emt 00:01:17]} Rae8
{[%clk 00:22:33]} {[%emt 00:01:31]} 14. Qf2 {[%clk 00:22:58]} {[%emt 00:00:44]}
f5 {[%clk 00:13:20]} {[%emt 00:09:23]} 15. Bc2 {[%clk 00:22:45]} {[%emt
00:00:22]} Kh8 {[%clk 00:13:00]} {[%emt 00:00:30]} 16. Rae1 {[%clk 00:19:54]}
{[%emt 00:03:02]} b5 {[%clk 00:07:51]} {[%emt 00:05:19]} 17. Bb3 {[%clk
00:14:14]} {[%emt 00:05:50]} Qf6 {[%clk 00:01:53]} {[%emt 00:06:07]} 18. Rxe8
{[%clk 00:13:14]} {[%emt 00:01:10]} Rxe8 {[%clk 00:02:02]} {[%emt 00:00:02]} 19.
Re1 {[%clk 00:13:23]} Re7 {[%clk 00:00:56]} {[%emt 00:01:17]} 20. Nh2 {[%clk
00:08:18]} {[%emt 00:05:15]} h5 {[%clk 00:00:38]} {[%emt 00:00:28]} 21. Rf1
{[%clk 00:05:17]} {[%emt 00:03:11]} Qd6 {[%clk 00:00:15]} {[%emt 00:00:33]} 22.
Nxg4 {[%clk 00:05:14]} {[%emt 00:00:13]} fxg4 {[%clk 00:00:23]} {[%emt
00:00:02]} 23. Qf5 {[%clk 00:05:22]} {[%emt 00:00:01]} 1-0

[Event "FIDE U16 Olympiad_boards_1-80"]
[Site "Eindhoven, Netherlands"]
[Date "2023.08.14"]
[Round "2.30"]
[White "Candian, Lorenzo"]
[Black "Vagman, Roy"]
[Result "1-0"]
[TimeControl "2700+10"]
[WhiteElo "1922"]
[BlackElo "2190"]

1. e4 {[%clk 00:45:12]} {[%emt 00:00:07]} g6 {[%clk 00:45:18]} {[%emt
00:00:03]} 2. d4 {[%clk 00:45:18]} {[%emt 00:00:04]} Bg7 {[%clk 00:45:26]}
{[%emt 00:00:02]} 3. Nc3 {[%clk 00:45:18]} {[%emt 00:00:10]} a6 {[%clk
00:45:30]} {[%emt 00:00:06]} 4. Be3 {[%clk 00:45:19]} {[%emt 00:00:08]} d6
{[%clk 00:45:22]} {[%emt 00:00:18]} 5. g3 {[%clk 00:45:26]} {[%emt 00:00:04]}
b5 {[%clk 00:43:00]} {[%emt 00:02:32]} 6. Bg2 {[%clk 00:45:34]} {[%emt
00:00:02]} Bb7 {[%clk 00:43:03]} {[%emt 00:00:07]} 7. Nge2 {[%clk 00:45:42]}
{[%emt 00:00:02]} Nd7 {[%clk 00:37:50]} {[%emt 00:05:23]} 8. O-O {[%clk
00:45:47]} {[%emt 00:00:05]} e6 {[%clk 00:36:35]} {[%emt 00:01:25]} 9. Nf4
{[%clk 00:41:03]} {[%emt 00:04:55]} Ne7 {[%clk 00:34:44]} {[%emt 00:02:00]} 10.
Nd3 {[%clk 00:37:17]} {[%emt 00:03:56]} Nb6 {[%clk 00:32:17]} {[%emt 00:02:38]}
11. Ne2 {[%clk 00:37:02]} {[%emt 00:00:24]} O-O {[%clk 00:30:54]} {[%emt
00:01:32]} 12. c3 {[%clk 00:32:24]} {[%emt 00:04:49]} Rc8 {[%clk 00:28:43]}
{[%emt 00:02:21]} 13. f4 {[%clk 00:27:55]} {[%emt 00:04:38]} Nc4 {[%clk
00:24:41]} {[%emt 00:04:13]} 14. Bf2 {[%clk 00:28:04]} {[%emt 00:00:02]} f5
{[%clk 00:24:18]} {[%emt 00:00:33]} 15. e5 {[%clk 00:28:12]} {[%emt 00:00:01]}
Bxg2 {[%clk 00:21:48]} {[%emt 00:02:40]} 16. Kxg2 {[%clk 00:28:20]} {[%emt
00:00:03]} Qd7 {[%clk 00:20:02]} {[%emt 00:01:55]} 17. b3 {[%clk 00:27:48]}
{[%emt 00:00:42]} Nb6 {[%clk 00:20:00]} {[%emt 00:00:12]} 18. Qc2 {[%clk
00:25:10]} {[%emt 00:02:48]} Rfd8 {[%clk 00:16:19]} {[%emt 00:03:51]} 19. Rfd1
{[%clk 00:24:03]} {[%emt 00:01:18]} h6 {[%clk 00:13:00]} {[%emt 00:03:29]} 20.
Kg1 {[%clk 00:21:30]} {[%emt 00:02:43]} Bf8 {[%clk 00:09:24]} {[%emt 00:03:45]}
21. Rdc1 {[%clk 00:14:06]} {[%emt 00:07:34]} Nc6 {[%clk 00:07:47]} {[%emt
00:01:48]} 22. c4 {[%clk 00:12:36]} {[%emt 00:01:40]} bxc4 {[%clk 00:05:34]}
{[%emt 00:02:23]} 23. bxc4 {[%clk 00:12:30]} {[%emt 00:00:16]} dxe5 {[%clk
00:04:35]} {[%emt 00:01:08]} 24. Nxe5 {[%clk 00:10:56]} {[%emt 00:01:44]} Nxe5
{[%clk 00:04:40]} {[%emt 00:00:05]} 25. dxe5 {[%clk 00:11:05]} {[%emt
00:00:01]} c5 {[%clk 00:02:12]} {[%emt 00:02:38]} 26. Rab1 {[%clk 00:11:04]}
{[%emt 00:00:11]} Qc7 {[%clk 00:01:45]} {[%emt 00:00:38]} 27. a4 {[%clk
00:07:20]} {[%emt 00:03:53]} Qc6 {[%clk 00:01:09]} {[%emt 00:00:47]} 28. a5
{[%clk 00:07:14]} {[%emt 00:00:16]} Nd7 {[%clk 00:01:07]} {[%emt 00:00:11]} 29.
Rd1 {[%clk 00:06:42]} {[%emt 00:00:42]} Rb8 {[%clk 00:00:55]} {[%emt 00:00:22]}
30. Nc3 {[%clk 00:05:57]} {[%emt 00:00:55]} Be7 {[%clk 00:00:37]} {[%emt
00:00:28]} 31. Qa4 {[%clk 00:05:36]} {[%emt 00:00:31]} Qc7 {[%clk 00:00:24]}
{[%emt 00:00:23]} 32. Kg2 {[%clk 00:04:05]} {[%emt 00:01:41]} Nf8 {[%clk
00:00:32]} {[%emt 00:00:03]} 33. Rxd8 {[%clk 00:03:35]} {[%emt 00:00:40]} Rxd8
{[%clk 00:00:19]} {[%emt 00:00:23]} 34. Rb6 {[%clk 00:03:38]} {[%emt 00:00:06]}
Nd7 {[%clk 00:00:19]} {[%emt 00:00:11]} 35. Rxe6 {[%clk 00:03:33]} {[%emt
00:00:14]} Nf8 {[%clk 00:00:16]} {[%emt 00:00:13]} 36. Rc6 {[%clk 00:03:17]}
{[%emt 00:00:27]} Qb7 {[%clk 00:00:19]} {[%emt 00:00:07]} 37. Nd5 {[%clk
00:03:25]} Rd7 {[%clk 00:00:14]} {[%emt 00:00:15]} 38. Rb6 {[%clk 00:03:28]}
{[%emt 00:00:07]} Rxd5 {[%clk 00:00:21]} {[%emt 00:00:04]} 39. Rxb7 {[%clk
00:03:35]} {[%emt 00:00:02]} 1-0

[Event "FIDE U16 Olympiad_boards_1-80"]
[Site "Eindhoven, Netherlands"]
[Date "2023.08.14"]
[Round "2.31"]
[White "Uritsky, Yonathan"]
[Black "Vincenti, Leonardo"]
[Result "1-0"]
[TimeControl "2700+10"]
[WhiteElo "2074"]
[BlackElo "2180"]

1. Nf3 {[%clk 00:45:17]} {[%emt 00:00:02]} d5 {[%clk 00:45:19]} {[%emt
00:00:02]} 2. g3 {[%clk 00:45:22]} {[%emt 00:00:05]} c6 {[%clk 00:45:28]}
{[%emt 00:00:01]} 3. Bg2 {[%clk 00:45:28]} {[%emt 00:00:04]} Bg4 {[%clk
00:45:36]} {[%emt 00:00:02]} 4. O-O {[%clk 00:45:20]} {[%emt 00:00:18]} Nf6
{[%clk 00:45:44]} {[%emt 00:00:02]} 5. b3 {[%clk 00:45:07]} {[%emt 00:00:23]}
Nbd7 {[%clk 00:45:48]} {[%emt 00:00:07]} 6. Bb2 {[%clk 00:45:12]} {[%emt
00:00:05]} Qc7 {[%clk 00:45:40]} {[%emt 00:00:18]} 7. c4 {[%clk 00:45:04]}
{[%emt 00:00:18]} e6 {[%clk 00:45:18]} {[%emt 00:00:31]} 8. Nc3 {[%clk
00:44:34]} {[%emt 00:00:40]} Be7 {[%clk 00:44:48]} {[%emt 00:00:40]} 9. d4
{[%clk 00:43:52]} {[%emt 00:00:53]} O-O {[%clk 00:44:52]} {[%emt 00:00:05]} 10.
Rc1 {[%clk 00:41:31]} {[%emt 00:02:30]} Rad8 {[%clk 00:43:40]} {[%emt
00:01:22]} 11. h3 {[%clk 00:40:18]} {[%emt 00:01:25]} Bh5 {[%clk 00:43:02]}
{[%emt 00:00:47]} 12. Nd2 {[%clk 00:38:35]} {[%emt 00:01:53]} Qa5 {[%clk
00:41:25]} {[%emt 00:01:48]} 13. f4 {[%clk 00:36:32]} {[%emt 00:02:12]} Bg6
{[%clk 00:39:38]} {[%emt 00:01:57]} 14. a3 {[%clk 00:35:53]} {[%emt 00:00:49]}
c5 {[%clk 00:35:26]} {[%emt 00:04:22]} 15. cxd5 {[%clk 00:30:30]} {[%emt
00:05:34]} cxd4 {[%clk 00:34:05]} {[%emt 00:01:30]} 16. b4 {[%clk 00:25:12]}
{[%emt 00:05:29]} Bxb4 {[%clk 00:31:00]} {[%emt 00:03:15]} 17. Nb3 {[%clk
00:24:05]} {[%emt 00:01:16]} Qa6 {[%clk 00:30:13]} {[%emt 00:00:57]} 18. axb4
{[%clk 00:21:03]} {[%emt 00:03:13]} dxc3 {[%clk 00:30:21]} {[%emt 00:00:02]} 19.
Bxc3 {[%clk 00:21:12]} {[%emt 00:00:01]} Be4 {[%clk 00:25:37]} {[%emt
00:04:54]} 20. Ra1 {[%clk 00:18:27]} {[%emt 00:02:55]} Qc4 {[%clk 00:22:42]}
{[%emt 00:03:04]} 21. Qd4 {[%clk 00:17:36]} {[%emt 00:01:02]} Qxb3 {[%clk
00:20:24]} {[%emt 00:02:28]} 22. Bxe4 {[%clk 00:17:44]} {[%emt 00:00:02]} e5
{[%clk 00:20:33]} {[%emt 00:00:01]} 23. Bxh7+ {[%clk 00:10:55]} {[%emt
00:06:59]} Kxh7 {[%clk 00:16:37]} {[%emt 00:04:05]} 24. fxe5 {[%clk 00:11:04]}
{[%emt 00:00:02]} Nxd5 {[%clk 00:16:46]} 25. e6 {[%clk 00:09:16]} {[%emt
00:01:57]} N7f6 {[%clk 00:11:56]} {[%emt 00:05:00]} 26. Qh4+ {[%clk 00:08:21]}
{[%emt 00:01:05]} Kg8 {[%clk 00:12:05]} 27. Bxf6 {[%clk 00:06:44]} {[%emt
00:01:47]} Qe3+ {[%clk 00:11:02]} {[%emt 00:01:13]} 28. Kh1 {[%clk 00:06:26]}
{[%emt 00:00:28]} Nxf6 {[%clk 00:05:56]} {[%emt 00:05:16]} 29. Rxf6 {[%clk
00:06:33]} {[%emt 00:00:03]} Rd4 {[%clk 00:05:28]} {[%emt 00:00:38]} 30. Rf4
{[%clk 00:06:18]} {[%emt 00:00:25]} Rxf4 {[%clk 00:05:35]} {[%emt 00:00:03]} 31.
Qxf4 {[%clk 00:06:09]} {[%emt 00:00:19]} Qxe6 {[%clk 00:05:44]} {[%emt
00:00:01]} 32. Qg4 {[%clk 00:05:45]} {[%emt 00:00:35]} Qd5+ {[%clk 00:04:23]}
{[%emt 00:01:31]} 33. Qf3 {[%clk 00:05:44]} {[%emt 00:00:11]} Qd4 {[%clk
00:04:32]} {[%emt 00:00:01]} 34. Ra2 {[%clk 00:05:35]} {[%emt 00:00:18]} Rc8
{[%clk 00:03:52]} {[%emt 00:00:50]} 35. Kg2 {[%clk 00:04:51]} {[%emt 00:00:54]}
Rc1 {[%clk 00:03:51]} {[%emt 00:00:10]} 36. h4 {[%clk 00:04:30]} {[%emt
00:00:31]} a6 {[%clk 00:01:16]} {[%emt 00:02:46]} 37. b5 {[%clk 00:04:18]}
{[%emt 00:00:22]} Qc4 {[%clk 00:00:35]} {[%emt 00:00:52]} 38. Rd2 {[%clk
00:03:42]} {[%emt 00:00:46]} Qxb5 {[%clk 00:00:44]} 39. Rd8+ {[%clk 00:03:38]}
{[%emt 00:00:14]} Kh7 {[%clk 00:00:53]} {[%emt 00:00:01]} 40. Rd5 {[%clk
00:03:47]} Qc6 {[%clk 00:00:30]} {[%emt 00:00:32]} 41. Qe4+ {[%clk 00:03:24]}
{[%emt 00:00:34]} g6 {[%clk 00:00:20]} {[%emt 00:00:20]} 42. h5 {[%clk
00:03:33]} Rd1 {[%clk 00:00:17]} {[%emt 00:00:13]} 43. hxg6+ {[%clk 00:03:19]}
{[%emt 00:00:24]} fxg6 {[%clk 00:00:17]} {[%emt 00:00:10]} 44. Qe7+ {[%clk
00:02:29]} {[%emt 00:01:00]} Kg8 {[%clk 00:00:18]} {[%emt 00:00:09]} 45. Qd8+
{[%clk 00:01:27]} {[%emt 00:01:12]} Kf7 {[%clk 00:00:27]} {[%emt 00:00:01]} 46.
e4 {[%clk 00:01:33]} {[%emt 00:00:04]} Qc2+ {[%clk 00:00:13]} {[%emt 00:00:25]}
47. Kf3 {[%clk 00:00:59]} {[%emt 00:00:44]} Rf1+ {[%clk 00:00:21]} {[%emt
00:00:01]} 48. Ke3 {[%clk 00:01:08]} Re1+ {[%clk 00:00:30]} 49. Kf4 {[%clk
00:00:57]} {[%emt 00:00:23]} Qxe4+ {[%clk 00:00:19]} {[%emt 00:00:21]} 50. Kg5
{[%clk 00:01:06]} {[%emt 00:00:01]} Qe3+ {[%clk 00:00:23]} {[%emt 00:00:05]} 51.
Kg4 {[%clk 00:01:13]} {[%emt 00:00:03]} Qe4+ {[%clk 00:00:26]} {[%emt
00:00:06]} 52. Kg5 {[%clk 00:01:23]} {[%emt 00:00:01]} Qe7+ {[%clk 00:00:28]}
{[%emt 00:00:08]} 53. Qxe7+ {[%clk 00:01:16]} {[%emt 00:00:17]} Rxe7 {[%clk
00:00:37]} {[%emt 00:00:02]} 54. g4 {[%clk 00:01:23]} {[%emt 00:00:03]} b5
{[%clk 00:00:33]} {[%emt 00:00:13]} 55. Rd6 {[%clk 00:01:32]} {[%emt 00:00:02]}
a5 {[%clk 00:00:34]} {[%emt 00:00:08]} 56. Rf6+ {[%clk 00:01:40]} {[%emt
00:00:02]} Ke8 {[%clk 00:00:35]} {[%emt 00:00:08]} 57. Kxg6 {[%clk 00:01:48]}
{[%emt 00:00:04]} a4 {[%clk 00:00:37]} {[%emt 00:00:07]} 58. Ra6 {[%clk
00:01:54]} {[%emt 00:00:03]} Rb7 {[%clk 00:00:35]} {[%emt 00:00:12]} 59. g5
{[%clk 00:01:59]} {[%emt 00:00:06]} Ke7 {[%clk 00:00:22]} {[%emt 00:00:23]} 60.
Kh7 {[%clk 00:01:55]} {[%emt 00:00:14]} Kf8+ {[%clk 00:00:19]} {[%emt
00:00:13]} 61. Kh8 {[%clk 00:01:49]} {[%emt 00:00:17]} a3 {[%clk 00:00:12]}
{[%emt 00:00:17]} 62. g6 {[%clk 00:01:07]} {[%emt 00:00:52]} Rb8 {[%clk
00:00:13]} {[%emt 00:00:09]} 63. Ra7 {[%clk 00:01:10]} {[%emt 00:00:06]} Ke8
{[%emt 00:00:14]} 64. g7 {[%clk 00:01:16]} {[%emt 00:00:03]} 1-0

[Event "FIDE U16 Olympiad_boards_1-80"]
[Site "Eindhoven, Netherlands"]
[Date "2023.08.14"]
[Round "2.32"]
[White "Zito, Enrica"]
[Black "Orian, Noga"]
[Result "1-0"]
[TimeControl "2700+10"]
[WhiteElo "1625"]
[BlackElo "1866"]

1. e4 {[%clk 00:45:18]} {[%emt 00:00:02]} c5 {[%clk 00:45:17]} {[%emt
00:00:04]} 2. c3 {[%clk 00:45:27]} {[%emt 00:00:01]} Nf6 {[%clk 00:45:24]}
{[%emt 00:00:03]} 3. e5 {[%clk 00:45:35]} {[%emt 00:00:02]} Nd5 {[%clk
00:45:31]} {[%emt 00:00:02]} 4. d4 {[%clk 00:45:44]} {[%emt 00:00:02]} cxd4
{[%clk 00:45:39]} {[%emt 00:00:02]} 5. cxd4 {[%clk 00:45:53]} {[%emt 00:00:02]}
d6 {[%clk 00:45:44]} {[%emt 00:00:04]} 6. Nf3 {[%clk 00:46:01]} {[%emt
00:00:01]} Nc6 {[%clk 00:45:50]} {[%emt 00:00:04]} 7. Bc4 {[%clk 00:46:09]}
{[%emt 00:00:03]} Nb6 {[%clk 00:45:57]} {[%emt 00:00:02]} 8. Bb5 {[%clk
00:46:17]} {[%emt 00:00:02]} dxe5 {[%clk 00:46:05]} {[%emt 00:00:03]} 9. Nxe5
{[%clk 00:46:26]} {[%emt 00:00:02]} Bd7 {[%clk 00:46:12]} {[%emt 00:00:02]} 10.
Nxd7 {[%clk 00:46:34]} {[%emt 00:00:02]} Qxd7 {[%clk 00:46:20]} {[%emt
00:00:02]} 11. Nc3 {[%clk 00:46:43]} {[%emt 00:00:01]} e6 {[%clk 00:46:27]}
{[%emt 00:00:02]} 12. O-O {[%clk 00:46:50]} {[%emt 00:00:04]} Rd8 {[%clk
00:46:35]} {[%emt 00:00:02]} 13. Be3 {[%clk 00:46:16]} {[%emt 00:00:44]} Be7
{[%clk 00:46:39]} {[%emt 00:00:05]} 14. Qg4 {[%clk 00:45:02]} {[%emt 00:01:25]}
O-O {[%clk 00:46:30]} {[%emt 00:00:19]} 15. Rfd1 {[%clk 00:43:44]} {[%emt
00:01:28]} f5 {[%clk 00:46:13]} {[%emt 00:00:26]} 16. Qh5 {[%clk 00:41:03]}
{[%emt 00:02:52]} Nd5 {[%clk 00:43:35]} {[%emt 00:02:48]} 17. Bg5 {[%clk
00:38:29]} {[%emt 00:02:44]} Bxg5 {[%clk 00:40:53]} {[%emt 00:02:51]} 18. Qxg5
{[%clk 00:38:38]} {[%emt 00:00:02]} Rf6 {[%clk 00:40:57]} {[%emt 00:00:06]} 19.
Rac1 {[%clk 00:36:50]} {[%emt 00:01:58]} Rg6 {[%clk 00:40:19]} {[%emt
00:00:47]} 20. Qh4 {[%clk 00:36:43]} {[%emt 00:00:19]} Rg4 {[%clk 00:39:44]}
{[%emt 00:00:44]} 21. Qh3 {[%clk 00:35:23]} {[%emt 00:01:29]} Nf4 {[%clk
00:39:42]} {[%emt 00:00:12]} 22. Qf3 {[%clk 00:34:56]} {[%emt 00:00:37]} Nxg2
{[%clk 00:31:17]} {[%emt 00:08:35]} 23. Kh1 {[%clk 00:35:01]} {[%emt 00:00:05]}
Nh4 {[%clk 00:29:36]} {[%emt 00:01:52]} 24. Qe3 {[%clk 00:31:51]} {[%emt
00:03:21]} Qd6 {[%clk 00:26:33]} {[%emt 00:03:11]} 25. d5 {[%clk 00:29:45]}
{[%emt 00:02:17]} Nd4 {[%clk 00:17:11]} {[%emt 00:09:32]} 26. dxe6 {[%clk
00:25:19]} {[%emt 00:04:36]} Ng6 {[%clk 00:12:35]} {[%emt 00:04:46]} 27. f3
{[%clk 00:22:54]} {[%emt 00:02:35]} Rh4 {[%clk 00:12:13]} {[%emt 00:00:32]} 28.
Qf2 {[%clk 00:22:48]} {[%emt 00:00:16]} Qe7 {[%clk 00:07:56]} {[%emt 00:04:27]}
29. Bd7 {[%clk 00:21:23]} {[%emt 00:01:35]} Qg5 {[%clk 00:03:41]} {[%emt
00:04:25]} 30. Ne2 {[%clk 00:19:10]} {[%emt 00:02:22]} Nxe2 {[%clk 00:01:16]}
{[%emt 00:02:35]} 31. Qxe2 {[%clk 00:19:19]} {[%emt 00:00:02]} Kf8 {[%clk
00:00:38]} {[%emt 00:00:48]} 32. Rc7 {[%clk 00:16:30]} {[%emt 00:02:59]} Qe7
{[%clk 00:00:15]} {[%emt 00:00:33]} 33. Rdc1 {[%clk 00:16:03]} {[%emt
00:00:37]} Nf4 {[%clk 00:00:19]} {[%emt 00:00:06]} 34. Qc2 {[%clk 00:12:50]}
{[%emt 00:03:23]} g6 {[%clk 00:00:20]} {[%emt 00:00:08]} 35. Bc8 {[%clk
00:12:44]} {[%emt 00:00:16]} Qg5 {[%clk 00:00:11]} {[%emt 00:00:19]} 36. e7+
{[%clk 00:12:48]} {[%emt 00:00:06]} Kg8 {[%clk 00:00:13]} {[%emt 00:00:09]} 37.
exd8=Q+ {[%clk 00:12:31]} {[%emt 00:00:27]} Qxd8 {[%clk 00:00:21]} {[%emt
00:00:01]} 38. Qb3+ {[%clk 00:12:27]} {[%emt 00:00:15]} Kh8 {[%clk 00:00:15]}
{[%emt 00:00:16]} 39. Qc3+ {[%clk 00:12:36]} {[%emt 00:00:01]} Kg8 {[%clk
00:00:12]} {[%emt 00:00:13]} 40. Qg7# {[%clk 00:12:45]} 1-0